Cogmind - Beta 10.2 @@@ ROGUE MODE // 2021.10.09 @ 08:13:59 Player: Revenant Result: Destroyed by Y-45 Defender with Heavy Assault Rifle Performance ------------- Evolutions (1) 500 Regions Visited (2) 400 Robots Destroyed (18) 90 Value Destroyed (429) 429 Prototype IDs (0) 0 Alien Tech Used (0) 0 Bonus (0) 0 TOTAL SCORE: 1419 Bonus ------- None Cogmind --------- Core Integrity 0/400 Matter 296/300 Energy 100/100 System Corruption 0% Temperature Cool (9) Movement Core (200) Ox3 Location -9/Materials Parts ------- > --- POWER (1) -------- (None) > --- PROPULSION (3) --- (None) > --- UTILITY (3) ------ Small Storage Unit Medium Storage Unit > --- WEAPON (2) ------- (None) > --- INVENTORY (10) --- Light Ion Engine Aluminum Leg Aluminum Leg Aluminum Leg Sensor Array Terrain Scanner ECM Suite Datajack Peak State ------------ > --- POWER ------------ Light Nuclear Core > --- PROPULSION ------- Aluminum Leg Aluminum Leg Aluminum Leg > --- UTILITY ---------- Small Storage Unit Medium Storage Unit ECM Suite > --- WEAPON ----------- Mini Grenade Launcher Welding Torch > --- INVENTORY -------- Light Ion Engine Aluminum Leg Aluminum Leg Heat Sink Sensor Array Datajack Hammer [Rating: 12] Favorites ----------- Power Light Ion Engine Engine Light Ion Engine Power Core Light Nuclear Core Propulsion Aluminum Leg Leg Aluminum Leg Wheel Wheel Utility Medium Storage Unit Device Sensor Array Storage Medium Storage Unit Processor Signal Interpreter Weapon Assault Rifle Energy Gun EM Pulse Gun Ballistic Gun Assault Rifle Launcher Mini Grenade Launcher Special Weapon Welding Torch Impact Weapon Hammer Build | -11 -10 -9 ------- Run | Scr Mat Mat Slots Evolved 2 | . . 2 Power . | . . . Propulsion 1 | . . 1 Utility 1 | . . 1 Weapon . | . . . Parts Attached 51 | 9 33 9 Power 10 | 3 6 1 Engine 8 | 3 5 . Core 2 | . 1 1 Reactor . | . . . Propulsion 14 | 4 8 2 Treads . | . . . Leg 12 | 2 8 2 Wheel 2 | 2 . . Hover . | . . . Flight . | . . . Utility 15 | 1 10 4 Device 8 | . 5 3 Storage 6 | 1 4 1 Processor 1 | . 1 . Hackware . | . . . Protection . | . . . Artifact . | . . . Weapon 12 | 1 9 2 Energy Gun 2 | . 2 . Energy Cannon . | . . . Ballistic Gun 3 | 1 2 . Ballistic Cannon . | . . . Launcher 2 | . 1 1 Special Weapon 1 | . 1 . Impact Weapon 4 | . 3 1 Slashing Weapon . | . . . Piercing Weapon . | . . . Special Melee Weapon . | . . . Unidentified Prototypes . | . . . Parts Lost 13 | . 5 8 Power 2 | . 1 1 Propulsion 4 | . 1 3 Utility 2 | . 1 1 Weapon 5 | . 2 3 Highest Loss Streak 7 | . 3 7 Average Slot Usage (%) 91 | . 93 78 Engine 11 | . 13 . Core 1 | . . 6 Leg 27 | . 27 23 Device 6 | . 6 8 Storage 19 | . 18 21 Ballistic Gun 7 | . 9 . Launcher 4 | . 4 5 Special Weapon 4 | . 3 6 Impact Weapon 7 | . 7 4 Naked Turns . | . . . Heaviest Build 21 | 11 18 21 Greatest Support 30 | 20 20 30 Greatest Overweight (x) 4 | . 1 4 Average Overweight (x) . | . . . Largest Inventory Capacity 10 | 6 10 10 Average Capacity 8 | 5 8 9 Most Carried 10 | 4 10 9 Average Carried 6 | 2 7 8 Final Capacity 10 | 6 10 10 Final Carried 10 | 3 10 8 Class Distribution -------------------- 92% | Mutant 7% | Scavenger-Mutant Dominant Class ---------------- Mutant | -10/Materials Mutant | -9/Materials Resources | -11 -10 -9 ----------- Run | Scr Mat Mat Matter Collected 793 | 233 484 76 Remotely . | . . . Salvage Created 538 | . 427 111 Parts 27 | . 23 4 Haulers Intercepted 1 | . 1 . Recyclers Shooed . | . . . Parts Field Recycled . | . . . Retrieved Matter . | . . . Parts Self-Destructed . | . . . Prevented . | . . . Kills | -11 -10 -9 ------- Run | Scr Mat Mat Combat Hostiles Destroyed 12 | . 9 3 Melee 2 | . 1 1 Guns 4 | . 4 . Cannons 1 | . . 1 AOE 5 | . 4 1 Classes Destroyed 8 | . 8 . Worker 1 | . 1 . Builder 1 | . 1 . Tunneler 1 | . 1 . Hauler 1 | . 1 . Recycler 1 | . 1 . Watcher 1 | . 1 . Swarmer 3 | . 3 . Grunt 9 | . 6 3 Best Kill Streak 7 | . 7 2 Combat Bots Only 4 | . 4 2 Max Kills in Single Turn 3 | . 3 1 Gunslinging . | . . . Exploded 1 | . 1 1 Melee 1 | . 1 1 Uniques/NPCs Destroyed . | . . . Combat | -11 -10 -9 -------- Run | Scr Mat Mat Damage Taken 1906 | . 783 1123 Core 588 | . 178 410 Absorbed by Shields . | . . . Core Remaining (%) 64 | 100 28 . Volleys Fired 63 | . 43 20 Largest 1 | . 1 1 Hottest 40 | . 40 30 Shots Fired 63 | . 43 20 Gun 38 | . 38 . Cannon . | . . . Launcher 8 | . 5 3 Special 17 | . . 17 Kinetic 24 | . 24 . Thermal 17 | . . 17 Explosive 8 | . 5 3 Electromagnetic 14 | . 14 . Robot Hit Streak 8 | . 7 8 Robot Miss Streak 5 | . 5 3 Penetration Max . | . . . Secondary Targets . | . . . Shots Hit Robots 54 | . 29 25 Core Hits 31 | . 20 11 Critical Hits . | . . . Critical Kills . | . . . Critical Parts Destroyed . | . . . Melee Attacks 23 | . 11 12 Impact 23 | . 11 12 Slashing . | . . . Piercing . | . . . Sneak Attacks 1 | . 1 . Combat Hostiles . | . . . Follow-up Attacks . | . . . Damage Inflicted 1456 | . 1029 427 Guns 303 | . 303 . Cannons . | . . . Explosions 870 | . 644 226 Melee 243 | . 82 161 Ramming . | . . . Kinetic 156 | . 156 . Thermal 190 | . 150 40 Explosive 720 | . 494 226 Electromagnetic 147 | . 147 . Impact 243 | . 82 161 Slashing . | . . . Piercing . | . . . Highest Corruption . | . . . Average Corruption . | . . . Corruption Purged . | . . . Overload Shots . | . . . Overflow Damage 158 | . 107 51 Projectiles . | . . . Explosions 144 | . 93 51 Melee 14 | . 14 . Knockbacks . | . . . Impact . | . . . Kinetic . | . . . Secondary . | . . . Self-Inflicted Damage 139 | . 68 71 Shots 5 | . 3 2 Rammed . | . . . Targets Rammed . | . . . Kicked . | . . . Crushed . | . . . Highest Temperature 12 | . 12 2 Average Temperature 4 | . 5 2 Received Heat Transfer 768 | . 273 495 Siege Activations . | . . . Robots Corrupted . | . . . Combat Hostiles . | . . . Parts Fried 1 | . 1 . Impact Corruptions 1 | . 1 . Robots Melted . | . . . Combat Hostiles . | . . . Parts Melted 1 | . . 1 Heat Transferred 625 | . 300 325 Parts Sabotaged . | . . . Parts Stolen . | . . . Parts Stripped . | . . . Power Chain Reactions 2 | . 2 . Missiles Intercepted . | . . . Alert | -11 -10 -9 ------- Run | Scr Mat Mat Peak Influence 170 | . 170 55 Initial . | . . . Average 39 | . 50 15 Maximum Alert Level . | . . . Low Security (%) 100 | 100 100 100 Level 1 . | . . . Level 2 . | . . . Level 3 . | . . . Level 4 . | . . . Level 5 . | . . . High Security . | . . . Max Security . | . . . Squads Dispatched 1 | . . 1 Investigation . | . . . Extermination . | . . . Reinforcement 1 | . . 1 Assault . | . . . Garrison . | . . . Intercept . | . . . Construction Impeded . | . . . Haulers Reinforced . | . . . Stealth | -11 -10 -9 --------- Run | Scr Mat Mat Distress Signals 3 | . 2 1 Communications Jammed . | . . . Distress Signals . | . . . Times Spotted 23 | . 16 7 Peak Tracking Total 6 | . 6 5 Tactical Retreats 1 | . 1 . Traps | -11 -10 -9 ------- Run | Scr Mat Mat Traps Triggered 2 | . 2 . Indirectly . | . . . Trap Hack Attempts . | . . . Triggered . | . . . Disarmed . | . . . Reprogrammed . | . . . Reused . | . . . Traps Extracted . | . . . Installed . | . . . Triggered . | . . . Machines | -11 -10 -9 ---------- Run | Scr Mat Mat Machines Disabled 6 | . 5 1 Max in Single Turn 2 | . 2 1 Machines Sabotaged . | . . . Garrisons Compromised . | . . . Overloaded Fab Kills . | . . . Fab Network Shutdowns . | . . . Hacking | -11 -10 -9 --------- Run | Scr Mat Mat Machines Accessed 1 | . 1 . Terminals 1 | . 1 . Fabricators . | . . . Repair Stations . | . . . Recycling Units . | . . . Scanalyzers . | . . . Garrison Access . | . . . Total Hacks 3 | . 3 . Successful 2 | . 2 . Failed 1 | . 1 . Catastrophic . | . . . Database Lockouts . | . . . Manual . | . . . Terminals 3 | . 3 . Fabricators . | . . . Repair Stations . | . . . Recycling Units . | . . . Scanalyzers . | . . . Garrison Access . | . . . Terminal Hacks 2 | . 2 . Branch Access Points 1 | . 1 . Alert Level 1 | . 1 . Fabricator Hacks . | . . . Repair Station Hacks . | . . . Recycling Unit Hacks . | . . . Scanalyzer . | . . . Garrison Access Hacks . | . . . Unauthorized Hacks . | . . . Terminals . | . . . Fabricators . | . . . Repair Stations . | . . . Recycling Units . | . . . Scanalyzers . | . . . Garrison Access . | . . . Data Cores Recovered . | . . . Used . | . . . Hacking Detections . | . . . Full Trace Events . | . . . Feedback Events . | . . . Feedback Blocked . | . . . Robot Schematics Acquired . | . . . Robots Built . | . . . Matter . | . . . Time . | . . . Total Robot Build Rating . | . . . Part Schematics Acquired . | . . . Parts Built . | . . . Matter . | . . . Time . | . . . Total Part Build Rating . | . . . Parts Repaired . | . . . Time . | . . . Parts Recycled . | . . . Recycled Matter . | . . . Retrieved Matter . | . . . Retrieved Components . | . . . Parts Scanalyzed . | . . . Part Schematics Acquired . | . . . Parts Damaged . | . . . Bothacking | -11 -10 -9 ------------ Run | Scr Mat Mat Used RIF Installer . | . . . Robots Hacked . | . . . Non-combat . | . . . Combat . | . . . Robot Hacks Applied . | . . . Relay Couplers Released . | . . . Robots Rewired . | . . . Allies Hacked . | . . . Hacks Repelled . | . . . Allies | -11 -10 -9 -------- Run | Scr Mat Mat Total Allies . | . . . Largest Group . | . . . Highest-Rated Group . | . . . Highest-Rated Ally . | . . . Total Orders . | . . . Ally Attacks . | . . . Total Damage . | . . . Kills . | . . . Allies Corrupted . | . . . Allies Melted . | . . . Intel | -11 -10 -9 ------- Run | Scr Mat Mat Robot Analysis Total . | . . . Derelict Logs Recovered . | . . . Drone Launches . | . . . Drone Recoveries . | . . . Exploration | -11 -10 -9 ------------- Run | Scr Mat Mat Turns Passed 1670 | 177 1244 249 Spaces Moved 990 | 132 769 89 Core 28 | 8 . 20 Treads . | . . . Legs 957 | 119 769 69 Wheels 5 | 5 . . Hover . | . . . Flight . | . . . Fastest Speed 50 | 50 120 120 Average Speed 128 | 114 129 148 Slowest Speed 250 | 120 150 250 Overloaded Moves . | . . . Propulsion Burnouts . | . . . Robots Hopped . | . . . Cave-ins Triggered . | . . . Exploration Rate (%) 37 | 8 91 12 Regions Visited 2 Branch Regions . Pre-discovered Areas . | . . . Known Exits Taken 1 | . 1 . Unknown Exits Taken 1 | 1 . . Scrap Searched . | . . . Spaces Dug . | . . . Terrain Destroyed 71 | . 45 26 Melee . | . . . Projectile . | . . . AOE 71 | . 45 26 Terrain Rammed . | . . . Walls Destroyed . | . . . Machines Disabled . | . . . Actions | -11 -10 -9 --------- Run | Scr Mat Mat Total 1288 | 158 967 163 Wait 69 | . 39 30 Move 988 | 131 768 89 Hop . | . . . Pick Up 60 | 13 45 2 Fast Attach . | . . . Attach 22 | 5 13 4 Detach 2 | . 2 . Swap 29 | 4 20 5 Drop 32 | 5 26 1 Fire 63 | . 43 20 Melee 23 | . 11 12 Ram . | . . . Kick . | . . . Crush . | . . . Escape Stasis . | . . . Rewire . | . . . Trap . | . . . Miscellaneous . | . . . Route ------- -11/Scrapyard -10/Materials (discovered 3 exits: *Mat x2 / *Min) -9/Materials History --------- Turn | Location | Event 16 | -11/Scrapyard | Discovered new exit (range 15) 178 | -11/Scrapyard | Entered Materials 207 | -10/Materials | Identified exit to Mines 361 | -10/Materials | Build established: Mutant 566 | -10/Materials | Discovered new exit (range 9) 581 | -10/Materials | Identified exit to Materials 898 | -10/Materials | Core integrity fell below 50% 1046 | -10/Materials | Lost 3 parts (1n2w) 1142 | -10/Materials | Discovered exit to Materials (range 10) 1422 | -10/Materials | Entered another Materials area 1422 | -9/Materials | Evolved 2 slots: Propulsion x1, Utility x1 1621 | -9/Materials | Core integrity fell below 50% 1642 | -9/Materials | Lost 7 parts (1p3n1u2w) 1652 | -9/Materials | Core integrity fell below 20% 1671 | -9/Materials | Destroyed by Y-45 Defender with Heavy Assault Rifle Last Messages --------------- Atomic Centrifuge disabled. G-34 Mercenary destroyed. Aluminum Leg destroyed. K-01 Serf collects debris. G-34 Mercenary destroyed. R-06 Scavenger collects Ion Engine. K-01 Serf destroyed. R-06 Scavenger collects Wheel. Acquired 41 matter. R-06 Scavenger collects Heat Sink. R-06 Scavenger collects Ion Engine. The unstable cave ceiling collapses. U-05 Engineer lays Concrete. The unstable cave ceiling collapses. U-05 Engineer builds a Door. U-05 Engineer lays Concrete. U-05 Engineer builds a Wall. T-07 Excavator destroyed. Hammer destroyed. [Achievement: First Step to Greatness] Map ----- +----------------------------------------------------+ | | | | | | | | | | | ?????????????????????????????????????????????????? | | ?????????????????????????????????????????????????? | | ?????????????????????????????????????#???????????? | | ?????????????????????????????????????????????????? | | ?????????????????????##?????###??????????????????? | | ????????????????????? ????? #??#??????????????? | | ???????????####+###?? ?????? T?????????????????? | | ???????????# = #?# ?????? #?????????????????? | | ???????????# #?# ?????? #?????????????????? | | ???????????#""" ]#?# ????? #?????#???????????? | | ???????????#""" #?# #??????# #????#####????????? | | ???????????#"" #?# ######## #????# #????????? | | ?????#?????# #?# ## # +###### #????????" | | ?????# #####/ #### ## # # #??#?????? | | ?????# % + # ########## | | ????????##### # ######### # | | ????????????# %## # / | | ????????????### ###===% # # | | ??????????????# #?#=== # # ########## | | ??????????????# ###== # / # #????????? | | ??????????##### #Y @# / # #????????? | | ??????????+ + ## ######## #????????? | | ??????????##### # """ ####?????## #??? ????? | | ??????????????# # """ #?????????# #????????? | | ??????????????# # """ #?????????# #????????? | | ????????????? # #?????????# #????????? | | ???????????? # #?????????# #????????? | | ??????????? # #######?????????# #????????? | | ?????????? ###???????????????# #????????? | | ????????? #???????????????#?# #????????? | | ???????? || ?????????????????# #????????? | | ??????? |[ ?????????????????# #????????? | | ??????? ?????????????????# #????????? | | ???????? ?????????????????# #????????? | | ?????????? ?????????????????# ????????? | | ?????????????###+##?????????????????# ????????? | | ????????????????????????????????????# ????????? | | ????????????????????????????????????# ????????? | | ????????????????????????????????????? ????????? | | ?????????????????????????????????????^ "????????? | | ????????????????????????????????????? ?????????? | | ?????????????????????????????????????????????????? | | ?????????????????????????????????????????????????? | | ?????????????????????????????????????????????????? | | ?????????????????????????????????????????????????? | +----------------------------------------------------+ Best States ------------- Heat Dissipation 38 Energy Generation 14 Energy Capacity 250 Matter Stores 300 Matter Capacity 300 Sight Range 16 Robot Scan Range 10 Terrain Scan Range 14 Terrain Scan Density 10 ECM Strength 1 Evasion (%) 50 Item Schematics ----------------- None Robot Schematics ------------------ None Fabricated ------------ Nothing Alien Tech Used ----------------- None Achievements -------------- First Step to Greatness Loot Pinata Challenges ------------ None Game ------ Seed PotentialAlertRedirector Manual? 0 Play Time 00:24:14 Cumulative 1.3 hours Start 2021.05.19 @ 12:27:01 End 2021.10.09 @ 08:13:59 Sessions 3 Manual Loads 0 Difficulty Rogue Special Mode None Game No. 2 Rogue 2 Adventurer 0 Explorer 0 Win Type - Total 0 Types 0/0/0/0/0/0/0/0/0 Lore% 0 Gallery% 2 Achievement% 2 Wizard Run 0 Options --------- ASCII 1 Keyboard 0 Movement Vi Keybinds 0 Fullscreen 1 Font 18/SmallcapsGlow Map View 76x50 Tactical HUD 0 Map Filters NONE Filters NONE Steam 1 RUN: e7a278cd-3e9e-475f-836b-410a5b5b971d